bitfinex-derivatives/quotes_ETHF0:USTF0_20241104
["timestamp","ask_amount","ask_price","bid_price","bid_amount"]
[1730724636028,0.40413,2476.3,2476.2,0.4281]
[1730724636429,0.40413,2476.3,2476.2,0.83224]
[1730724637132,0.40412,2476.4,2476.2,0.83224]
[1730724637727,0.40413,2476.3,2476.2,0.4281]
[1730724637927,0.40413,2476.3,2476.1,0.83165]
[1730724638234,0.40413,2476.3,2476.2,0.40414]
[1730724638528,44.0078,2476.6,2476.1,0.8496]
[1730724638740,0.40414,2476.3,2476.1,1.25375]
[1730724638920,0.40412,2476.4,2476.3,0.40413]
[1730724639129,0.40413,2476.3,2476.2,0.40414]
[1730724639429,0.4041,2476.5,2476.1,0.8496]
[1730724639630,0.4041,2476.5,2476.4,0.40411]
[1730724639826,41.20409,2476.6,2476.5,0.40409]
[1730724640028,40.8,2476.6,2476.5,0.40409]
[1730724640229,41.20408,2476.6,2476.5,0.40409]
[1730724640628,41.20408,2476.6,2476.5,0.83639]
[1730724641134,40.8,2476.6,2476.5,0.83639]
[1730724641526,41.20408,2476.6,2476.5,0.83639]
[1730724642935,40.8,2476.6,2476.5,0.83639]
[1730724643137,3.2078,2476.9,2476.6,0.40406]
[1730724643436,0.40404,2476.9,2476.6,0.4359]
[1730724643735,0.40404,2476.9,2476.8,0.40404]
[1730724644038,41.20404,2476.9,2476.8,0.40404]
[1730724644932,40.8,2476.9,2476.8,0.40404]
[1730724646836,1.00992,2477.3,2476.7,3.16036905]
[1730724647030,0.40404,2476.8,2476.7,3.56441905]
[1730724647226,0.40404,2476.8,2476.7,0.40405]
[1730724647637,1.01,2477.1,2476.7,0.40405]
[1730724647831,40.8,2477.2,2476.6,3.6437]
[1730724648027,0.404,2477.1,2476.7,0.40405]
[1730724648342,0.40405,2476.8,2476.7,0.40406]
[1730724648539,0.40406,2476.7,2476.6,0.4359]
[1730724649634,0.8497,2476.8,2476.5,0.4323]
[1730724649635,0.40408,2476.6,2476.5,0.4323]
[1730724650532,0.40408,2476.6,2476.5,0.83639]
[1730724650837,0.40408,2476.6,2476.5,0.4323]
[1730724651231,0.40408,2476.6,2476.5,0.83639]
[1730724651747,0.40408,2476.6,2476.5,0.4323]
[1730724651935,0.40408,2476.6,2476.5,0.83639]
[1730724652241,0.4536,2476.8,2476.5,0.83639]
[1730724652441,0.40408,2476.6,2476.5,1.28869]
[1730724653038,0.40407,2476.7,2476.5,0.8846]
[1730724653336,0.3961,2477.0,2476.5,0.8846]
[1730724653337,0.8255,2477.0,2476.5,4.04496905]
[1730724653542,0.40405,2476.8,2476.7,0.40406]
[1730724653945,0.40404,2476.8,2476.6,0.40408]
[1730724654244,0.40404,2476.8,2476.5,8.26300905]
[1730724654245,0.40404,2476.8,2476.7,0.40405]
[1730724655740,41.80997,2477.2,2476.5,8.26296905]
[1730724655946,0.40402,2477.0,2476.8,3.56439905]
[1730724656244,0.40402,2477.0,2476.9,0.8365]
[1730724656446,0.40402,2477.0,2476.9,1.24053]
[1730724656946,0.40401,2477.0,2476.9,1.24052]
[1730724657441,0.40401,2477.0,2476.9,1.68512]
[1730724658445,0.40401,2477.0,2476.9,1.88223239]
[1730724658742,40.8,2477.2,2476.9,1.47821239]
[1730724658944,0.404,2477.1,2477.0,0.404]
[1730724659339,0.404,2477.1,2477.0,0.6011489]
[1730724659736,40.8,2477.2,2477.1,0.404]
[1730724660057,4.21768,2477.4,2477.0,3.16036905]
[1730724660237,0.404,2477.1,2477.0,3.56436905]
[1730724660444,0.404,2477.1,2477.0,3.76166052]
[1730724660742,0.40399,2477.2,2477.1,0.40399]
[1730724660938,0.40399,2477.2,2477.1,0.60128147]
[1730724661139,0.40399,2477.2,2477.1,0.19729147]
[1730724661335,0.40399,2477.2,2477.1,0.60129147]
[1730724661745,0.40399,2477.2,2477.1,0.19729147]
[1730724661947,0.40399,2477.2,2477.1,0.60129147]
[1730724662137,0.40399,2477.2,2477.1,0.19729147]
[1730724662445,0.40399,2477.2,2477.1,0.60129147]
[1730724662745,41.20398,2477.3,2477.2,0.40398]
[1730724663136,40.8,2477.3,2477.2,0.60127405]
[1730724663339,41.20396,2477.3,2477.2,0.19729405]
[1730724663539,40.8,2477.3,2476.9,0.8365]
[1730724663744,0.40401,2477.0,2476.9,0.8365]
[1730724663938,0.40401,2477.0,2476.9,1.59897168]
[1730724664342,0.40401,2477.0,2476.9,1.0337903]
[1730724664746,0.40401,2477.0,2476.9,1.5989401]
[1730724664951,0.40398,2477.2,2477.1,0.40399]
[1730724665137,0.40399,2477.2,2477.1,0.60124091]
[1730724665339,0.40399,2477.2,2477.1,0.19725091]
[1730724665544,0.40399,2477.2,2477.1,0.60125091]
[1730724665744,40.8,2477.3,2477.2,0.40398]
[1730724665952,41.20396,2477.3,2477.2,0.60116515]
[1730724666340,40.8,2477.3,2477.2,0.60116515]
[1730724666542,41.20396,2477.3,2477.2,0.40398]
[1730724666739,40.8,2477.3,2477.2,0.40398]
[1730724666945,41.20396,2477.3,2477.2,0.40398]
[1730724667145,40.8,2477.3,2477.2,0.60111972]
[1730724667352,41.20396,2477.3,2477.2,0.40398]
[1730724667651,41.20396,2477.3,2477.1,0.40399]
[1730724667652,0.40399,2477.2,2477.1,0.40399]
[1730724667844,0.40399,2477.2,2477.1,0.60110866]
[1730724668050,0.40399,2477.2,2477.1,0.19711866]
[1730724668242,3.2078,2477.2,2476.9,0.4182]
[1730724668442,0.40404,2476.8,2476.7,0.4448]
[1730724668639,0.8296,2477.1,2476.7,1.07190308]
[1730724668843,0.40402,2477.0,2476.9,0.40402]
[1730724669042,0.40402,2477.0,2476.9,0.60122308]
[1730724669246,0.40402,2477.0,2476.9,0.60123308]
[1730724669443,0.40401,2477.0,2476.9,0.19726558]
[1730724669644,0.40401,2477.0,2476.9,0.60129558]
[1730724669846,0.40401,2477.0,2476.9,0.19726558]
[1730724670043,4.61418,2477.2,2476.8,0.40404]
[1730724670250,3.6042,2477.2,2476.9,0.19728318]
[1730724670447,0.40404,2476.8,2476.7,4.0825]
[1730724670656,0.40404,2476.8,2476.7,4.84520612]
[1730724670948,0.40404,2476.9,2476.8,0.40404]
[1730724671142,0.40404,2476.9,2476.8,0.60140205]
[1730724671344,0.40404,2476.9,2476.8,0.19736205]
[1730724673555,0.40404,2476.9,2476.8,0.76300809]
[1730724674248,0.40404,2476.9,2476.8,0.76309202]
[1730724674954,7.64944,2476.9,2476.8,0.19744598]
[1730724675355,0.40404,2476.9,2476.8,0.76333881]
[1730724676750,0.40404,2476.9,2476.8,0.19744598]
[1730724677247,4.44164,2476.9,2476.8,0.19744598]
[1730724677759,0.40411,2476.4,2476.3,2.30799975]
[1730724677947,0.40411,2476.4,2476.3,2.5279783]
[1730724678253,0.4041,2476.5,2476.3,3.99981598]
[1730724678461,0.4041,2476.5,2476.4,0.76367514]
[1730724680352,0.4041,2476.5,2476.4,0.19758373]
[1730724680553,4.4425,2476.5,2476.4,0.19758373]
[1730724681858,0.4041,2476.5,2476.4,1.48839373]
[1730724682254,0.4041,2476.5,2476.4,2.05470768]
[1730724682452,0.4041,2476.5,2476.4,2.50550695]
[1730724684363,0.40409,2476.6,2476.5,0.40409]
[1730724684563,0.40409,2476.6,2476.5,0.76400894]
[1730724685265,0.40409,2476.6,2476.5,0.76401526]
[1730724685469,0.40409,2476.6,2476.5,0.19765989]
[1730724687263,4.44169,2476.6,2476.5,0.19765989]
[1730724687567,7.64949,2476.6,2476.5,0.19765989]
[1730724687961,0.40414,2476.2,2476.1,3.2078]
[1730724688261,0.40414,2476.2,2476.1,4.37641382]
[1730724688467,41.20414,2476.2,2476.1,4.37641382]
[1730724688866,41.20414,2476.2,2476.1,4.37636389]
[1730724689362,41.20414,2476.2,2476.1,3.80971307]
[1730724689669,41.20414,2476.2,2476.1,4.37620208]
[1730724689866,41.20414,2476.2,2476.1,1.16840208]
[1730724690081,41.20414,2476.2,2476.1,0.60191307]
[1730724690763,41.20414,2476.2,2476.1,1.16827608]
[1730724691471,41.20414,2476.2,2476.1,0.60191307]
[1730724691671,41.20414,2476.2,2476.1,1.16818594]
[1730724691872,41.20414,2476.2,2476.1,0.60191307]
[1730724692064,41.20414,2476.2,2476.1,1.16817859]
[1730724692367,41.20414,2476.2,2476.1,0.40416]
[1730724692573,41.20414,2476.2,2476.1,0.60180319]
[1730724692869,0.40414,2476.2,2476.1,0.60180319]
[1730724693071,0.40414,2476.2,2476.1,0.19764319]
[1730724693271,0.40414,2476.2,2476.1,0.60180319]
[1730724694564,40.8,2476.3,2476.1,0.19764319]
[1730724694767,0.40413,2476.3,2476.2,1.05221111]
[1730724696276,0.40413,2476.3,2476.2,0.85464]
[1730724696566,0.40413,2476.3,2476.2,1.05214164]
[1730724699878,0.40413,2476.3,2476.2,1.05202793]
[1730724700382,0.40413,2476.3,2476.2,0.85464]
[1730724700771,40.8,2476.4,2476.2,0.4505]
[1730724700978,3.16036905,2476.7,2476.3,0.19734815]
[1730724700979,0.40411,2476.5,2476.3,0.19734815]
[1730724701280,0.40411,2476.5,2476.4,0.40411]
[1730724701468,0.40414,2476.3,2476.2,0.40412]
[1730724701674,0.40414,2476.3,2476.2,0.60151981]
[1730724702779,0.40414,2476.3,2476.2,1.03523981]
[1730724702976,0.40414,2476.3,2476.2,0.63109981]
[1730724703279,0.40414,2476.3,2476.2,0.4337]
[1730724703880,0.40414,2476.3,2476.2,1.03525766]
[1730724704675,0.40414,2476.3,2476.2,0.63111766]
[1730724705180,0.40414,2476.3,2476.2,1.03525766]
[1730724705881,0.40413,2476.3,2476.2,1.03524766]
[1730724707183,0.40413,2476.3,2476.2,1.03533461]
[1730724707883,0.40413,2476.3,2476.2,0.63120461]
[1730724709380,0.40413,2476.3,2476.2,1.03534461]
[1730724710477,0.40413,2476.3,2476.2,0.63120461]
[1730724710678,0.40413,2476.3,2476.2,1.03534461]
[1730724710890,40.8,2476.5,2476.2,0.63120461]
[1730724711086,0.40413,2476.3,2476.2,0.4337]
[1730724711289,0.40413,2476.3,2476.2,1.0354762]
[1730724711478,0.40412,2476.4,2476.3,0.40411]
[1730724711684,0.40412,2476.4,2476.3,0.6017462]
[1730724712081,40.8,2476.5,2476.3,0.1976362]
[1730724712381,41.2041,2476.5,2476.4,1.04487117]
[1730724713979,41.2041,2476.5,2476.4,0.64076117]
[1730724714179,41.2041,2476.5,2476.4,0.4431]
[1730724714375,41.2041,2476.5,2476.4,1.04498015]
[1730724714775,41.2041,2476.5,2476.4,0.64087015]
[1730724714981,1.45555202,2476.6,2476.4,0.64087015]
[1730724715187,1.85964202,2476.6,2476.5,1.04244595]
[1730724715579,46.69724202,2476.6,2476.5,1.04244595]
[1730724716382,46.69724202,2476.6,2476.5,0.63835595]
[1730724716688,46.69724202,2476.6,2476.2,0.4337]
[1730724716689,0.40413,2476.3,2476.2,0.4337]
[1730724716887,41.20408,2476.6,2476.5,0.40409]
[1730724717090,40.8,2476.6,2476.5,0.60203578]
[1730724717285,41.20408,2476.6,2476.5,0.60203578]
[1730724717684,41.20408,2476.6,2476.5,0.60198689]
[1730724718085,41.20408,2476.6,2476.5,1.17224841]
[1730724718288,40.8,2476.6,2476.5,1.17224841]
[1730724718793,1.85959202,2476.9,2476.8,0.40404]
[1730724719093,1.85959202,2476.9,2476.8,0.60193689]
[1730724719290,46.29315202,2476.9,2476.8,0.60193689]
[1730724719588,40.8,2476.9,2476.8,1.17225133]
[1730724719789,46.69718202,2476.9,2476.8,0.19789689]
[1730724719989,0.40406,2476.7,2476.6,0.4222]
[1730724720187,1.85961202,2476.7,2476.6,0.62017272]
[1730724720381,5.89721202,2476.7,2476.6,0.62017272]
[1730724722684,5.89721202,2476.7,2476.6,1.59527581]
[1730724723096,1.85961202,2476.7,2476.6,1.19119581]
[1730724723293,5.89721202,2476.7,2476.6,1.19119581]
[1730724723597,0.40408,2476.6,2476.5,0.83989]
[1730724723792,0.40408,2476.6,2476.5,0.8642]
[1730724724092,4.44168,2476.6,2476.5,1.63370844]
[1730724724296,4.89478,2476.6,2476.5,0.76950844]
[1730724724905,4.89478,2476.6,2476.5,0.19824256]
[1730724725197,4.89478,2476.6,2476.5,0.7698464]
[1730724726995,4.4907,2476.6,2476.3,0.4305]
[1730724727201,1.85966202,2476.4,2476.3,0.4305]
[1730724727389,1.85966202,2476.4,2476.3,2.11540924]
[1730724727390,0.40411,2476.4,2476.3,2.11540924]
[1730724727695,0.40411,2476.4,2476.3,0.77014116]
[1730724727898,4.44251,2476.4,2476.3,0.77014116]
[1730724728097,7.59630199,2476.4,2476.3,0.77014116]
[1730724728297,7.59630199,2476.4,2476.3,0.19840995]
[1730724728692,7.59630199,2476.4,2476.0,0.4357]
[1730724728693,7.19219199,2476.4,2476.0,0.4357]
[1730724728900,3.61194,2476.2,2476.1,0.77058211]
[1730724729294,7.6912,2476.2,2475.9,0.441]
[1730724729494,3.55795199,2476.1,2476.0,0.77051322]
[1730724729699,3.55795199,2476.1,2476.0,0.19850776]
[1730724729896,3.55795199,2476.1,2476.0,0.7705069]
[1730724730098,0.40416,2476.1,2476.0,1.1746869]
[1730724730400,3.2078,2476.2,2476.0,1.1746869]
[1730724730401,0.40415,2476.2,2476.1,0.40416]
[1730724730599,0.40415,2476.2,2476.1,0.7705069]
[1730724730791,4.44255,2476.2,2476.1,0.7705069]
[1730724730990,4.88755,2476.2,2476.1,0.7705069]
[1730724731198,4.44255,2476.2,2476.1,0.7705069]
[1730724732093,4.44255,2476.2,2476.1,0.19850776]
[1730724732806,4.83845,2476.2,2476.1,0.19850776]
[1730724733193,45.63845,2476.2,2476.1,0.19850776]
[1730724734394,48.84625,2476.2,2476.1,0.19850776]
[1730724736200,45.63845,2476.2,2476.1,0.19850776]
[1730724736407,48.84625,2476.2,2476.1,0.19850776]
[1730724736797,45.63845,2476.2,2476.1,0.19850776]
[1730724736993,48.84625,2476.2,2476.1,0.19850776]
[1730724737497,0.40418,2476.0,2475.9,0.441]
[1730724737698,0.40418,2476.0,2475.9,1.0131252]
[1730724737904,4.44338,2476.0,2475.9,1.41016924]
[1730724738400,0.40418,2476.0,2475.9,1.41016924]
[1730724738703,45.24338,2476.0,2475.9,1.41016924]
[1730724738906,41.20418,2476.0,2475.9,1.41016924]
[1730724739100,45.24338,2476.0,2475.9,1.41016924]
[1730724739302,41.20418,2476.0,2475.9,1.41016924]
[1730724739506,41.20418,2476.0,2475.9,1.81435924]
[1730724741197,41.20418,2476.0,2475.9,1.81389028]
[1730724742615,41.20418,2476.0,2475.9,1.40968697]
[1730724743013,41.20418,2476.0,2475.9,1.6153534]
[1730724746497,41.20418,2476.0,2475.9,1.2111634]
[1730724746720,41.20418,2476.0,2475.9,1.61580467]
[1730724746906,41.20418,2476.0,2475.9,1.21161467]
[1730724747109,41.20418,2476.0,2475.9,0.63939645]
[1730724747605,41.20418,2476.0,2475.9,1.04358645]
[1730724747806,41.20418,2476.0,2475.9,1.04374087]
[1730724748009,41.20418,2476.0,2475.9,0.63955087]
[1730724748513,41.20418,2476.0,2475.9,0.63953989]
[1730724749407,42.66015089,2476.0,2475.9,0.63953989]
[1730724750314,0.40419,2475.9,2475.8,0.4357]
[1730724750809,0.40419,2475.9,2475.8,0.83991]
[1730724751705,0.40419,2475.9,2475.8,1.41170572]
[1730724754406,0.40419,2475.9,2475.8,0.57179572]
[1730724754612,0.40421,2475.9,2475.8,0.40419]
[1730724755606,0.40421,2475.9,2475.8,0.97926507]
[1730724756215,0.40421,2475.9,2475.8,0.40419]
[1730724756607,0.40421,2475.8,2475.7,1.30612]
[1730724756813,1.86018089,2475.8,2475.7,1.88119134]
[1730724757815,1.86018089,2475.8,2475.7,1.47697134]
[1730724758121,1.86018089,2475.8,2475.7,1.47688828]
[1730724758518,1.86018089,2475.8,2475.7,1.88110828]
[1730724759322,1.86018089,2475.8,2475.7,1.88101065]
[1730724761929,1.86018089,2475.8,2475.7,1.02169065]
[1730724762419,1.86018089,2475.8,2475.7,1.21970493]
[1730724762821,1.86018089,2475.8,2475.7,0.4468]
[1730724763022,1.86018089,2475.8,2475.7,1.22008443]
[1730724763224,1.86018089,2475.8,2475.7,0.77328443]
[1730724766212,1.86018089,2475.8,2475.7,0.57527144]
[1730724766414,1.86018089,2475.8,2475.7,0.77334891]
[1730724767020,1.86018089,2475.8,2475.7,1.19784891]
[1730724770527,1.86018089,2475.8,2475.7,2.11922281]
[1730724770725,1.86018089,2475.8,2475.7,1.19784891]
[1730724771323,1.86018089,2475.8,2475.7,2.11937334]
[1730724773325,1.86018089,2475.8,2475.7,1.92229132]
[1730724773520,1.86018089,2475.8,2475.7,2.12058557]
[1730724773930,1.86018089,2475.8,2475.7,1.69608557]
[1730724774929,5.89938089,2475.8,2475.7,1.69608557]
[1730724775127,5.89938089,2475.8,2475.7,0.77436783]
[1730724776931,0.40422,2475.7,2475.6,0.85184]
[1730724777228,0.40422,2475.7,2475.6,2.14459315]
[1730724777536,0.40422,2475.7,2475.6,2.54883315]
[1730724780028,0.40422,2475.7,2475.6,2.14459315]
[1730724780427,0.40422,2475.7,2475.6,2.5488335]
[1730724781236,0.40422,2475.7,2475.6,2.1445935]
[1730724781436,0.40422,2475.7,2475.6,2.5488335]
[1730724782832,0.40422,2475.7,2475.6,0.85184]
[1730724783036,0.40422,2475.7,2475.6,2.54854725]
[1730724784131,1.86018089,2475.8,2475.7,0.40422]
[1730724784333,1.86018089,2475.8,2475.7,3.00882725]
[1730724784639,1.86018089,2475.8,2475.7,4.6665541]
[1730724785542,1.86018089,2475.8,2475.7,3.00882725]
[1730724786231,1.86018089,2475.8,2475.7,1.88840344]
[1730724786432,1.86018089,2475.8,2475.7,2.81023951]
[1730724786639,1.86018089,2475.8,2475.7,3.00858386]
[1730724787141,1.86018089,2475.8,2475.7,2.60436386]
[1730724787531,1.86018089,2475.8,2475.7,3.00858386]
[1730724787727,1.86018089,2475.8,2475.7,2.60436386]
[1730724788534,1.86018089,2475.8,2475.7,3.00858386]
[1730724789850,1.86018089,2475.8,2475.7,2.60478628]
[1730724790141,5.89938089,2475.8,2475.7,2.14588628]
[1730724791942,5.89938089,2475.8,2475.7,1.69688628]
[1730724792242,44.0078,2476.0,2475.7,2.10110628]
[1730724792545,40.8,2476.0,2475.9,0.40419]
[1730724792738,40.8,2476.0,2475.9,2.10158856]
[1730724792935,42.25597089,2476.0,2475.9,3.46638856]
[1730724793141,42.25597089,2476.0,2475.9,3.4662681]
[1730724793443,42.25597089,2476.0,2475.9,4.62603666]
[1730724793743,42.25597089,2476.0,2475.9,5.13146888]
[1730724794342,42.66015089,2476.0,2475.9,4.62603666]
[1730724794649,42.66015089,2476.0,2475.9,4.62603139]
[1730724794946,42.66015089,2476.0,2475.9,3.4662681]
[1730724795943,42.66015089,2476.0,2475.9,3.46639257]
[1730724796643,42.66015089,2476.0,2475.9,3.47518905]
[1730724796843,42.66015089,2476.0,2475.9,2.89529483]
[1730724797039,42.66015089,2476.0,2475.9,3.47519925]
[1730724797449,42.66015089,2476.0,2475.9,4.63508817]
[1730724798354,42.66015089,2476.0,2475.9,3.47519925]
[1730724801043,42.25597089,2476.0,2475.9,3.47519925]
[1730724801239,40.8,2476.0,2475.9,8.67426809]
[1730724801643,40.8,2476.0,2475.9,8.67418714]
[1730724802147,40.8,2476.0,2475.9,5.80819]
[1730724802340,40.8,2476.0,2475.9,6.00664229]
[1730724802552,40.8,2476.0,2475.9,8.67411702]
[1730724803252,40.8,2476.0,2475.9,3.47515621]
[1730724803441,42.66015089,2476.0,2475.9,3.47515621]
[1730724803946,42.66015089,2476.0,2475.9,1.76899]
[1730724804142,42.66015089,2476.0,2475.9,3.47563498]
[1730724804951,42.66015089,2476.0,2475.9,3.07144498]
[1730724806152,42.66015089,2476.0,2475.9,3.47563498]
[1730724806552,42.66015089,2476.0,2475.9,3.07144498]
[1730724807354,42.66015089,2476.0,2475.9,3.47563498]
[1730724807656,42.66015089,2476.0,2475.9,3.4756787]
[1730724807854,42.66015089,2476.0,2475.9,3.0714887]
[1730724808453,42.66015089,2476.0,2475.9,3.4756787]
[1730724809156,42.66015089,2476.0,2475.9,3.0714887]
[1730724809350,42.66015089,2476.0,2475.9,1.76899]
[1730724809657,42.66015089,2476.0,2475.9,1.3648]
[1730724809857,42.66015089,2476.0,2475.9,1.76899]
[1730724810955,42.66015089,2476.0,2475.9,3.47496515]
[1730724811457,42.66015089,2476.0,2475.9,3.27653534]
[1730724811656,42.66015089,2476.0,2475.9,3.47498433]
[1730724811857,42.66015089,2476.0,2475.9,3.07079433]
[1730724812160,42.66015089,2476.0,2475.9,1.96743899]
[1730724812362,42.66015089,2476.0,2475.9,3.47497609]
[1730724813457,42.66015089,2476.0,2475.9,3.07078609]
[1730724813653,42.66015089,2476.0,2475.9,3.47270237]
[1730724818358,42.66015089,2476.0,2475.9,3.47070631]
[1730724818769,42.66015089,2476.0,2475.9,3.06651631]
[1730724818972,42.66015089,2476.0,2475.9,3.47070631]
[1730724819268,42.66015089,2476.0,2475.9,1.96743899]
[1730724819472,42.66015089,2476.0,2475.9,3.47068953]
[1730724822768,42.66015089,2476.0,2475.9,3.27224054]
[1730724822969,42.66015089,2476.0,2475.9,1.76899]
[1730724823268,42.66015089,2476.0,2475.9,3.47088326]
[1730724826565,42.66015089,2476.0,2475.9,3.47106791]
[1730724828072,42.66015089,2476.0,2475.9,3.06687791]
[1730724828465,42.66015089,2476.0,2475.9,3.47106791]
[1730724830174,42.66015089,2476.0,2475.9,2.34731989]
[1730724830471,42.66015089,2476.0,2475.9,4.62834474]
[1730724830875,42.66015089,2476.0,2475.9,3.47144268]
[1730724831177,42.66015089,2476.0,2475.9,5.13397444]
[1730724831571,42.66015089,2476.0,2475.9,4.62850008]
[1730724831974,42.66015089,2476.0,2475.9,5.13393931]
[1730724832372,0.40418,2476.0,2475.9,4.62850008]
[1730724832575,0.40418,2476.0,2475.9,5.13394068]
[1730724834084,0.40418,2476.0,2475.9,5.13438528]
[1730724835782,0.40418,2476.0,2475.9,6.19051903]
[1730724837587,0.40418,2476.0,2475.9,2.82512375]
[1730724837780,0.40418,2476.0,2475.9,6.19226867]
[1730724837990,0.40418,2476.0,2475.9,3.33055787]
[1730724838191,0.40418,2476.0,2475.9,5.13615887]
[1730724840983,1.86015089,2476.0,2475.9,7.1639948]
[1730724841591,1.86015089,2476.0,2475.9,7.5681848]
[1730724841795,1.86015089,2476.0,2475.9,6.50856368]
[1730724841994,1.86015089,2476.0,2475.9,7.56816992]
[1730724842895,1.86015089,2476.0,2475.9,6.50856368]
[1730724843098,1.86015089,2476.0,2475.9,7.56815191]
[1730724843488,1.86015089,2476.0,2475.9,6.50856368]
[1730724844090,1.86015089,2476.0,2475.9,6.50932915]
[1730724844287,1.86015089,2476.0,2475.9,5.17913915]
[1730724844495,2.31575089,2476.0,2475.9,4.42757401]
[1730724845084,43.11575089,2476.0,2475.9,4.42757401]
[1730724845995,47.15495089,2476.0,2475.9,4.42757401]
[1730724846290,0.40424,2475.6,2475.5,1.05962869]
[1730724846493,1.86021089,2475.6,2475.5,0.50553412]
[1730724846687,0.40426,2475.5,2475.4,1.48752869]
[1730724846883,0.40426,2475.5,2475.4,3.1286744]
[1730724847298,0.40426,2475.5,2475.4,1.99307922]
[1730724847687,0.40426,2475.5,2475.4,3.16985629]
[1730724848302,0.40426,2475.5,2475.4,1.17677707]
[1730724848590,0.80016,2475.5,2475.4,1.17677707]
[1730724848987,1.85187089,2475.5,2475.3,1.05962869]
[1730724849191,0.40429,2475.3,2475.2,1.48772869]
[1730724849395,1.86026089,2475.3,2475.2,2.66405281]
[1730724849596,1.86026089,2475.3,2475.2,1.60442412]
[1730724850383,0.40431,2475.2,2475.1,1.05962869]
[1730724850595,0.40431,2475.2,2475.1,1.61814489]
[1730724851287,0.40431,2475.2,2475.1,0.4423]
[1730724851802,0.84271,2475.2,2475.1,0.4423]
[1730724851995,0.40431,2475.2,2475.1,0.84662]
[1730724852688,0.40431,2475.2,2475.1,0.4423]
[1730724853995,0.40431,2475.2,2475.1,0.84662]
[1730724855294,3.2078,2475.5,2475.1,4.4823]
[1730724855495,1.4067,2475.7,2475.2,5.39245577]
[1730724855496,1.45597089,2475.7,2475.2,5.39245577]
[1730724855689,1.45597089,2475.7,2475.2,5.27819869]
[1730724855887,1.86020089,2475.7,2475.6,0.40424]
[1730724856408,1.86017089,2475.9,2475.8,0.40421]
[1730724856594,0.40422,2475.8,2475.7,0.40421]
[1730724856793,1.45597089,2475.8,2475.5,3.2078]
[1730724856991,1.86021089,2475.6,2475.5,3.2078]
[1730724857293,1.86021089,2475.7,2475.6,0.40424]
[1730724857595,1.86019089,2475.7,2475.6,0.40424]
[1730724857998,0.40425,2475.6,2475.5,0.40424]
[1730724858299,0.40425,2475.6,2475.5,2.12661948]
[1730724858497,1.86020089,2475.7,2475.6,0.40424]
[1730724858705,1.86020089,2475.7,2475.6,1.18823165]
[1730724862002,1.45597089,2475.7,2475.6,1.18823165]
[1730724862197,1.86019089,2475.7,2475.6,1.18823165]
[1730724862402,1.86019089,2475.7,2475.6,0.99035188]
[1730724862699,1.86019089,2475.7,2475.6,1.18777658]
[1730724863108,1.45597089,2475.7,2475.6,0.40424]
[1730724863403,1.86019089,2475.7,2475.6,1.18802395]
[1730724863698,1.86019089,2475.7,2475.6,2.1261463]
[1730724863901,1.45597089,2475.7,2475.6,2.1261463]
[1730724864096,0.40421,2475.8,2475.7,0.40421]
[1730724864302,1.86017089,2475.9,2475.8,0.86331]
[1730724864499,42.25597089,2476.0,2475.8,1.68798395]
[1730724864701,42.25597089,2476.0,2475.9,1.18797395]
[1730724865003,42.66015089,2476.0,2475.9,1.18797395]
[1730724866206,42.25597089,2476.0,2475.9,1.18797395]
[1730724866804,42.25597089,2476.0,2475.9,2.12563311]
[1730724867105,42.25597089,2476.0,2475.9,1.18797395]
[1730724867106,42.66015089,2476.0,2475.9,1.18797395]
[1730724868700,42.25597089,2476.0,2475.9,1.18797395]
[1730724869407,42.66015089,2476.0,2475.9,1.18797395]
[1730724869604,42.25597089,2476.0,2475.9,1.18797395]
[1730724869795,42.66015089,2476.0,2475.9,1.18797395]
[1730724870304,42.66015089,2476.0,2475.9,1.18787745]
[1730724870703,42.25597089,2476.0,2475.9,1.18787745]
[1730724870897,40.8,2476.0,2475.9,2.12598083]
[1730724873100,40.8,2476.0,2475.9,1.18787745]
[1730724873907,42.66015089,2476.0,2475.9,1.18787745]
[1730724874796,42.66015089,2476.0,2475.9,0.78368745]
[1730724875204,42.66015089,2476.0,2475.9,0.1973872]
[1730724875402,46.69935089,2476.0,2475.9,0.1973872]
[1730724875603,46.69935089,2476.0,2475.9,0.78379082]
[1730724875906,46.69935089,2476.0,2475.9,0.1973872]
[1730724877406,0.40421,2475.8,2475.7,0.83122]
[1730724877707,1.86018089,2475.8,2475.7,1.61524249]
[1730724877902,1.86018089,2475.8,2475.7,0.83122]
[1730724878107,0.40421,2475.8,2475.7,1.6152796]
[1730724878305,1.86017089,2475.9,2475.8,0.40421]
[1730724878508,1.86017089,2475.9,2475.8,1.1882696]
[1730724879712,41.20418,2476.0,2475.9,0.40419]
[1730724880005,41.20418,2476.0,2475.9,1.2096596]
[1730724880201,41.20418,2476.0,2475.9,1.6138496]
[1730724881707,41.20418,2476.0,2475.9,1.61380154]
[1730724885306,41.20418,2476.0,2475.9,1.20961154]
[1730724885504,41.20418,2476.0,2475.9,0.78401154]
[1730724886311,45.24338,2476.0,2475.9,0.19756366]
[1730724886506,0.40421,2475.8,2475.7,1.28812]
[1730724886807,1.86018089,2475.8,2475.7,1.2112211]
[1730724887007,1.86018089,2475.8,2475.7,1.6154411]
[1730724887417,1.86017089,2475.9,2475.8,0.40421]
[1730724887713,1.86017089,2475.9,2475.8,1.1884311]
[1730724889419,1.86017089,2475.9,2475.8,1.18852123]
[1730724890606,1.86017089,2475.9,2475.8,0.78431123]
[1730724892311,1.86017089,2475.9,2475.8,0.19771078]
[1730724892811,1.86017089,2475.9,2475.7,0.83122]
[1730724893016,1.86018089,2475.8,2475.7,0.83122]
[1730724893212,1.86018089,2475.8,2475.7,1.61588591]
[1730724893413,1.86018089,2475.8,2475.7,1.21166591]
[1730724896916,1.86018089,2475.8,2475.7,2.15099117]
[1730724900525,1.86018089,2475.8,2475.7,2.15311916]
[1730724900829,1.86018089,2475.8,2475.7,2.15324843]
[1730724902527,1.86018089,2475.8,2475.7,3.3293207]
[1730724905031,1.86018089,2475.8,2475.7,3.7335407]
[1730724905730,1.86018089,2475.8,2475.7,3.3293207]
[1730724905922,1.86018089,2475.8,2475.7,3.7335407]
[1730724906118,1.86018089,2475.8,2475.7,3.3293207]
[1730724906928,1.86018089,2475.8,2475.7,3.3316025]
[1730724909230,1.86018089,2475.8,2475.7,3.7358225]
[1730724910729,1.86018089,2475.9,2475.7,0.62519684]
[1730724910937,0.40421,2475.9,2475.8,0.9925105]